[Event "Charlotte CC Fall GM-Open 2024"]
[Site "Charlotte"]
[Date "2024.11.25"]
[Round "6.1"]
[White "Aarav Dengla"]
[Black "Bruzon Batista, Lazaro"]
[Result "0-1"]
[ECO "B13"]
[WhiteElo "2390"]
[BlackElo "2578"]
[Annotator "TA"]
[PlyCount "116"]
[EventDate "2024.11.22"]
[EventType "tourn"]
[EventCountry "USA"]
[SourceTitle "playchess.com"]
[Source "ChessBase"]
[SourceQuality "1"]
[TimeControl "5400+30"]

{[%evp 9,116,22,37,23,25,41,24,12,15,4,5,8,23,31,33,23,35,0,0,-15,0,0,0,0,0,0,0,-115,-110,-124,-109,-127,-113,-128,-103,-106,-95,-144,-129,-147,-145,-144,-63,-42,-55,-64,-45,-150,-109,-93,-114,-87,-91,-89,-102,-95,-84,-91,-48,-89,-81,-90,-68,-66,-67,-66,-66,-414,-414,-360,-92,-302,-173,-423,-68,-451,-444,-29964,-29965,-29974,-29975,-29975,-29973,-29973,-29973,-29974,-29975,-29979,-29978,-29979,-29980,-29980,-29981,-29981,-29982,-29984,-29985,-29985,-29982,-29982,-29983,-29983,-29984,-29984,-29985,-29985,-29986,-29987,-29988]} 1. e4 {[%emt 0:01:08]} c6 {[%emt 0:00:05]} 2. d4 {[%emt 0:00:27]} d5 {[%emt 0:00:04]} 3. exd5 {[%emt 0:00:06]} cxd5 {[%emt 0:00:04]} 4. Bd3 {[%emt 0:00:05]} Nc6 {[%emt 0:00:10]} 5. c3 {[%emt 0:00:05]} e6 {[%emt 0:02:09]} 6. Bf4 {[%emt 0:01:43]} Bd6 {[%emt 0:00:08]} 7. Bxd6 {[%emt 0:00:51]} Qxd6 {[%emt 0:00:08]} 8. Qg4 {[%emt 0:01:30] White has an edge.} Kf8 {[%emt 0:08:21]} 9. Qg3 {[%emt 0:18:30]} Qxg3 {[%emt 0:00:49]} 10. hxg3 {[%emt 0:00:04]} Nge7 {[%emt 0:03:07]} 11. Na3 {[%emt 0:00:39]} (11. Rxh7 $2 Rxh7 12. Bxh7 g6 $19) 11... f6 {[%emt 0:02:52]} 12. O-O-O {[%emt 0:02:46]} (12. Bxh7 $2 g6 13. Rh3 e5 $19 (13... Kg7 $2 14. Bxg6 Nxg6 15. Rxh8 $19)) 12... g6 {[%emt 0:06:09]} 13. f4 {[%emt 0:01:51]} Kg7 {[%emt 0:00:18]} 14. Nf3 {[%emt 0:00:32]} a6 {[%emt 0:00:22]} 15. g4 {[%emt 0:01:43]} e5 $1 {[%emt 0:01:36]} 16. fxe5 {[%emt 0:09:53]} fxe5 {[%emt 0:00:26]} 17. dxe5 {[%emt 0:08:27]} Bxg4 {[%emt 0:00:12]} 18. Rde1 {[%emt 0:00:15]} (18. Be2 $1 $11) 18... Bxf3 $1 $17 {[%emt 0:11:15]} 19. gxf3 {[%emt 0:00:06]} Rhf8 {[%emt 0:00:46]} 20. Rh3 {[%emt 0:02:58]} Rf4 {[%emt 0:00:12]} 21. Nc2 {[%emt 0:03:02]} Raf8 {[%emt 0:00:30]} 22. Re3 {[%emt 0:00:17]} h5 {[%emt 0:01:42]} 23. Ne1 {[%emt 0:01:30]} (23. Kd2 $142) 23... d4 {[%emt 0:07:46]} 24. Re2 {[%emt 0:07:03]} dxc3 {[%emt 0:12:58]} 25. bxc3 {[%emt 0:00:15]} Kh6 {[%emt 0:08:22]} (25... b5 $17 26. a3 Ra4) 26. Be4 $15 {[%emt 0:01:56]} Nxe5 {[%emt 0:00:48]} 27. Bxb7 {[%emt 0:00:16]} N7c6 {[%emt 0:00:08]} 28. Kc2 {[%emt 0:10:16]} (28. Bxa6 $15 Nxf3 29. Nxf3 Rxf3 30. Rxf3 Rxf3 31. Kc2) 28... R8f6 {[%emt 0:05:00] Black is more active.} 29. Bxc6 {[%emt 0:01:15]} Nxc6 {[%emt 0:00:06]} 30. Nd3 {[%emt 0:00:01]} Rxf3 {[%emt 0:01:42]} 31. Rxf3 {[%emt 0:00:06]} Rxf3 $17 {[%emt 0:00:02][%mdl 4096] Endgame. KRN-KRN} 32. Re6 {[%emt 0:00:11] Wards off Rf6} Nd8 {[%emt 0:00:57]} 33. Rxa6 {[%emt 0:02:08]} Nf7 {[%emt 0:00:38]} 34. Kd2 {[%emt 0:10:21]} h4 {[%emt 0:02:21]} 35. Ke2 {[%emt 0:00:09]} Rg3 {[%emt 0:00:35]} 36. Rf6 $1 {[%emt 0:01:29]} Ng5 {[%emt 0:04:23] Hoping for ...h3.} 37. Rf4 {[%emt 0:12:12]} h3 {[%emt 0:02:09] ...Kg7 is the strong threat.} 38. a4 $2 {[%emt 0:01:53][%mdl 8192] Black continues to play with concentration.} (38. Nf2 $15) 38... Kg7 $1 $19 {[%emt 0:01:01] aiming for ...h2.} 39. Nf2 {[%emt 0:01:06]} Rxc3 $2 {[%emt 0:04:34]} (39... h2 $1 $19 40. Rh4 Nh3 (40... Rxc3 41. Rxh2 Nf3 42. Rg2 $11)) 40. Rh4 {[%emt 0:00:32]} (40. Kf1 $17) 40... Ra3 {[%emt 0:03:14]} (40... Nf3 $142 $1 {[%cal Rf3h4]} 41. Re4 h2) 41. Nd3 $2 {[%emt 0:00:48]} (41. Rb4 {was called for.}) 41... Ra1 $2 {[%emt 0:05:12]} ({Black should try} 41... h2 $19 {[%cal Oa3a4] ...Rxa4! would now be deadly.} 42. Ke3 Nf7 (42... Ra2 $2 43. a5 $19)) 42. Kf2 $2 {[%emt 0:00:25][%mdl 8192]} (42. Nf2 $1 $15) 42... h2 {[%emt 0:00:35]} 43. Kg2 {[%emt 0:00:33]} (43. Rxh2 $19 Ra2+ (43... Rxa4 44. Kf1 $11) 44. Kg3 Ne4+ (44... Rxa4 45. Nf2 $11) 45. Kh3) 43... Rg1+ {[%emt 0:00:16] Black mates.} 44. Kxh2 {[%emt 0:00:33]} Nf3+ {[%emt 0:00:03]} 45. Kh3 {[%emt 0:00:01]} Rh1+ {[%emt 0:00:16]} 46. Kg2 {[%emt 0:00:12]} Rxh4 {[%emt 0:00:04]} ({Worse is} 46... Nxh4+ 47. Kxh1 Nf5 48. Kg2 $11) 47. Kxf3 {[%emt 0:00:05]} Rxa4 {[%emt 0:00:04] KR-KN} 48. Nf4 {[%emt 0:00:10]} Kf6 {[%emt 0:00:30]} 49. Nd5+ {[%emt 0:00:06]} Ke5 {[%emt 0:00:19]} 50. Ne3 {[%emt 0:00:09]} Ra3 {[%emt 0:00:15]} 51. Kf2 {[%emt 0:00:03]} Ke4 {[%emt 0:00:44]} 52. Ng2 {[%emt 0:00:28]} g5 {[%emt 0:01:22]} 53. Ne1 {[%emt 0:00:08]} Kf4 {[%emt 0:00:22]} 54. Ng2+ {[%emt 0:00:09]} Kg4 {[%emt 0:00:05]} 55. Ne3+ {[%emt 0:00:02] [#]} Rxe3 $1 {[%emt 0:00:11]} 56. Kxe3 {[%emt 0:00:06] [#]} Kg3 $1 {[%emt 0:00:05]} 57. Ke2 {[%emt 0:00:05]} g4 {[%emt 0:00:09]} 58. Kf1 {[%emt 0:00:06] [#]} Kh2 $1 {[%emt 0:00:04] Weighted Error Value: White=0.53/Black=0.32.  Loses game:     	White=3     	---        Missed win:     	---       	Black=2      Mistake:       	White=5     	Black=2      Inaccurate:     	White=2     	Black=1      OK:         	White=8     	Black=14     Best:        	White=4     	Black=2      Strong:       	White=1     	Black=3} 0-1

[Event "Charlotte CC Fall GM-Open 2024"]
[Site "Charlotte"]
[Date "2024.11.25"]
[Round "6.2"]
[White "Lee, Alice"]
[Black "Chen, Ryo"]
[Result "1-0"]
[ECO "A15"]
[WhiteElo "2398"]
[BlackElo "2435"]
[Annotator "TA"]
[PlyCount "125"]
[EventDate "2024.11.22"]
[EventType "tourn"]
[EventCountry "USA"]
[SourceTitle "playchess.com"]
[Source "ChessBase"]
[SourceQuality "1"]
[TimeControl "5400+30"]

{[%evp 65,125,-207,-111,-176,-183,-236,-108,-231,-24,-36,-36,-29,-19,-20,0,-17,-15,-27,0,0,0,0,0,0,0,0,0,0,0,0,0,0,0,0,0,0,0,0,12,12,16,0,64,0,5,8,8,8,6105,6105,5754,5679,3762,3428,6088,6550,1115,6033,5616,5327,4631,4627]} 1. Nf3 {[%emt 0:00:23]} Nf6 {[%emt 0:00:06]} 2. c4 {[%emt 0:00:05]} g6 {[%emt 0:00:06]} 3. g3 {[%emt 0:00:05]} Bg7 {[%emt 0:00:06]} 4. Bg2 {[%emt 0:00:07]} O-O {[%emt 0:00:13]} 5. O-O {[%emt 0:00:08]} c6 {[%emt 0:09:04]} 6. b3 {[%emt 0:00:51]} d6 {[%emt 0:04:13]} 7. Bb2 {[%emt 0:10:15]} e5 {[%emt 0:00:28]} 8. d3 {[%emt 0:00:20]} Re8 {[%emt 0:06:27]} 9. e4 {[%emt 0:01:10]} a5 {[%emt 0:07:59]} 10. Nc3 {[%emt 0:00:55]} Bg4 {[%emt 0:05:26]} 11. h3 {[%emt 0:02:08]} Bxf3 {[%emt 0:00:42]} 12. Qxf3 {[%emt 0:00:17]} Na6 {[%emt 0:02:43]} 13. Rab1 {[%emt 0:03:58]} Nc5 {[%emt 0:02:07]} 14. Ne2 {[%emt 0:00:54]} h5 {[%emt 0:17:16]} 15. h4 {[%emt 0:01:29]} Qd7 {[%emt 0:07:49]} 16. Rfd1 {[%emt 0:03:16]} Rad8 {[%emt 0:00:57]} 17. Bc3 {[%emt 0:02:11]} Qc7 {[%emt 0:03:09]} 18. Bd2 {[%emt 0:10:12]} Ne6 {[%emt 0:06:20]} 19. Rdc1 {[%emt 0:03:11]} Qd7 {[%emt 0:02:29]} 20. a3 {[%emt 0:04:21]} Ra8 {[%emt 0:04:28]} 21. Rb2 {[%emt 0:02:34]} Red8 {[%emt 0:02:10]} 22. Bc3 {[%emt 0:05:20]} Ng4 {[%emt 0:02:41]} 23. Rd1 {[%emt 0:01:56]} Rf8 {[%emt 0:01:40]} 24. d4 {[%emt 0:11:29]} f5 {[%emt 0:02:11]} 25. d5 {[%emt 0:00:09]} Nc5 {[%emt 0:04:16]} 26. dxc6 {[%emt 0:01:53]} bxc6 {[%emt 0:00:14]} 27. exf5 {[%emt 0:00:19]} e4 {[%emt 0:00:40]} 28. Qf4 {[%emt 0:00:01]} Nd3 {[%emt 0:04:37]} 29. Rxd3 {[%emt 0:00:13]} exd3 {[%emt 0:00:02]} 30. Nd4 {[%emt 0:00:05]} Rxf5 {[%emt 0:02:27]} 31. Qe4 {[%emt 0:02:15]} Raf8 {[%emt 0:01:39]} 32. f3 {[%emt 0:04:25]} Re8 {[%emt 0:00:55]} 33. Qxd3 {[%emt 0:00:10]} Ne5 {[%emt 0:00:44]} (33... Re3 $19 34. Qd2 Rf8 (34... Bxd4 35. Qxd4 Rxc3 36. Qxc3 $11) 35. fxg4 Rxg3 36. gxh5 Qg4 37. Nxc6 Bxc3 (37... Rxc3 $2 38. hxg6 Qxh4 39. Rb1 $19) 38. Qd5+ Kh8) 34. Qd1 {[%emt 0:03:31]} (34. Qb1 $17 {might work better.}) 34... Rff8 $19 {[%emt 0:00:13]} 35. f4 {[%emt 0:01:05]} (35. Rf2 $142) 35... c5 {[%emt 0:00:01]} (35... Ng4 36. Bxc6 Qa7 (36... Bxd4+ $2 37. Qxd4 $18) 37. Bxe8 Rxe8 38. Rd2) (35... Qg4 $1 $19 {[%cal Rg4d1] has better winning chances.} 36. Ne2 (36. Qxg4 $2 Nxg4 37. Rd2 Re1+ 38. Bf1 Rfe8 $19) 36... Nf3+ 37. Bxf3 Qxf3 38. Bxg7 Kxg7) 36. Bd5+ {[%emt 0:04:56] [#]} (36. fxe5 $17 cxd4 37. Qxd4 Bxe5 (37... Rxe5 38. Qd2 $17) 38. Qd2) 36... Kh7 $2 {[%emt 0:00:04]} ({Better is} 36... Nf7 $1 $19 37. Nb5 Re3) 37. Ne6 $1 $11 {[%emt 0:00:13]} Rxe6 {[%emt 0:01:08]} 38. Bxe6 {[%emt 0:00:06]} Qxe6 {[%emt 0:00:04]} 39. fxe5 {[%emt 0:00:04]} dxe5 {[%emt 0:00:40]} 40. Rf2 {[%emt 0:02:00]} Qh3 {[%emt 0:00:46]} 41. Rg2 {[%emt 0:01:42]} Qf5 {[%emt 0:00:40]} 42. Bxa5 {[%emt 0:03:40]} e4 {[%emt 0:00:05]} 43. Kh2 $1 {[%emt 0:00:12]} Bd4 {[%emt 0:00:50]} 44. b4 {[%emt 0:00:56]} Qf3 {[%emt 0:00:10]} 45. Qe2 {[%emt 0:00:21]} g5 {[%emt 0:00:47]} 46. Bc7 {[%emt 0:01:19]} cxb4 {[%emt 0:00:53]} (46... Qxa3 $2 47. Qxh5+ (47. hxg5 Qf3 $18) 47... Kg8 48. Qxg5+ Kh7 49. Qh5+ Kg7 50. Qg4+ (50. Be5+ Bxe5 51. Qxe5+ Kg8 $18) 50... Kh8 51. Qxe4 $18) 47. axb4 {[%emt 0:00:16]} gxh4 {[%emt 0:00:30]} 48. gxh4 {[%emt 0:00:15]} Be3 {[%emt 0:00:29]} 49. Bg3 {[%emt 0:02:43]} (49. c5 $5 Bf4+ $8 50. Bxf4 Rxf4 (50... Qxf4+ 51. Rg3 $11) 51. Kg1 (51. Qxf3 exf3 52. Rf2 Rxb4 $11) 51... Rxh4 52. Qxf3 exf3 53. Rb2 f2+ 54. Rxf2 (54. Kxf2 Rh2+ 55. Ke3 Rxb2 56. Ke4 Rxb4+ 57. Kd5 Rb2 58. Kd6 h4 59. c6 h3 60. c7 Rc2 61. Kd7 h2 62. c8=Q Rxc8 63. Kxc8 h1=Q 64. Kc7 Qd5 65. Kb6 Kg7 66. Ka7 Kf6 67. Ka6 Ke6 68. Kb6 Kd7 69. Ka7 Kc6 70. Kb8 Qb3+ 71. Kc8 Qg8#) 54... Rxb4 55. Rc2 $11) 49... Rg8 {[%emt 0:00:35]} 50. Qxf3 {[%emt 0:00:54]} exf3 {[%emt 0:00:00]} 51. Rc2 {[%emt 0:00:11]} Rg4 {[%emt 0:00:58]} 52. Kh3 {[%emt 0:03:04]} Kg6 {[%emt 0:00:23]} 53. c5 {[%emt 0:01:57]} (53. b5 $11 Bc5 54. b6 Bxb6 55. c5) 53... f2 $14 {[%emt 0:00:31]} 54. Bxf2 {[%emt 0:00:04]} Bxf2 {[%emt 0:00:02]} 55. Rxf2 {[%emt 0:00:05]} Rxb4 {[%emt 0:01:47]} 56. Rc2 {[%emt 0:05:09]} Rb7 $2 {[%emt 0:00:00][%mdl 8192]} (56... Rb3+ $11 57. Kh2 Rb7) 57. c6 $18 {[%emt 0:00:04]} Rc7 {[%emt 0:00:00] [#]} 58. Rc5 $1 {[%emt 0:00:53]} Kf7 {[%emt 0:00:00]} 59. Kg3 $1 {[%emt 0:00:28]} ({Not} 59. Rxh5 Rxc6 60. Rb5 Kg6 $11) 59... Ke6 {[%emt 0:00:00]} 60. Rxh5 {[%emt 0:00:49]} Kd6 {[%emt 0:01:43]} 61. Rh6+ {[%emt 0:00:10]} Ke5 {[%emt 0:00:16]} 62. Rg6 {[%emt 0:01:01]} Kf5 {[%emt 0:00:13]} 63. Rg5+ {[%emt 0:00:16]} 1-0

[Event "Charlotte CC Fall GM-Open 2024"]
[Site "Charlotte"]
[Date "2024.11.25"]
[Round "6.3"]
[White "Lohia, Sohum"]
[Black "Han, Johnathan"]
[Result "1/2-1/2"]
[ECO "B92"]
[WhiteElo "2391"]
[BlackElo "2330"]
[Annotator "RC"]
[PlyCount "60"]
[EventDate "2024.11.22"]
[EventType "tourn"]
[EventCountry "USA"]
[SourceTitle "playchess.com"]
[Source "ChessBase"]
[SourceQuality "1"]
[TimeControl "5400+30"]

1. e4 {[%emt 1:31:00]} c5 {[%emt 0:01:11]} 2. Nf3 {[%emt 0:00:00]} d6 {[%emt 0:00:10]} 3. d4 {[%emt 0:00:00]} cxd4 {[%emt 0:00:08]} 4. Nxd4 {[%emt 0:00:00]} Nf6 {[%emt 0:00:07]} 5. Nc3 {[%emt 0:00:00]} a6 {[%emt 0:00:26]} 6. Be2 {[%emt 0:00:00]} e5 {[%emt 0:01:09]} 7. Nf3 {[%emt 0:00:00]} Be7 {[%emt 0:01:45]} 8. Bg5 {[%emt 0:00:00]} Be6 {[%emt 0:03:26]} 9. Bxf6 {[%emt 0:00:00]} Bxf6 {[%emt 0:00:00]} 10. O-O {[%emt 0:00:00]} Be7 {[%emt 0:02:07]} 11. Nd5 {[%emt 0:00:00]} Nd7 {[%emt 0:01:37]} 12. Nxe7 {[%emt 0:00:00]} Qxe7 {[%emt 0:00:15]} 13. Qd2 {[%emt 0:00:00]} Nf6 {[%emt 0:01:24]} 14. Qe3 {[%emt 0:00:00]} Rc8 {[%emt 0:01:47]} 15. c3 {[%emt 0:00:00]} O-O {[%emt 0:00:34]} 16. Rfd1 {[%emt 0:00:00]} Bd7 {[%emt 0:05:16]} 17. Nd2 {[%emt 0:00:00]} Bc6 {[%emt 0:05:29]} 18. Bf3 {[%emt 0:00:00]} Rfd8 {[%emt 0:06:08]} 19. Nc4 {[%emt 0:00:00]} b5 {[%emt 0:03:25]} 20. Na5 {[%emt 0:00:00]} Ba8 {[%emt 0:00:15]} 21. a4 {[%emt 0:00:00]} d5 {[%emt 0:05:43]} 22. exd5 {[%emt 0:00:00]} Nxd5 {[%emt 0:00:50]} 23. Bxd5 {[%emt 0:00:00]} Bxd5 {[%emt 0:02:07]} 24. axb5 {[%emt 0:00:00]} axb5 {[%emt 0:00:16]} 25. b3 {[%emt 0:00:00]} Qc7 {[%emt 0:04:38]} 26. c4 {[%emt 0:00:00]} Be6 {[%emt 0:04:25]} 27. Rxd8+ {[%emt 0:00:00]} Rxd8 {[%emt 0:00:13]} 28. h3 {[%emt 0:00:00]} bxc4 {[%emt 0:07:04]} 29. Nxc4 {[%emt 0:00:00]} Bxc4 {[%emt 0:08:42]} 30. Rc1 {[%emt 0:00:00]} Rd4 {[%emt 0:00:37]} 1/2-1/2

[Event "Charlotte CC Fall GM-Open 2024"]
[Site "Charlotte"]
[Date "2024.11.25"]
[Round "6.4"]
[White "Cordova, Emilio"]
[Black "Kunka, Harshid"]
[Result "0-1"]
[ECO "A11"]
[WhiteElo "2525"]
[BlackElo "2347"]
[Annotator "RC"]
[PlyCount "122"]
[EventDate "2024.11.22"]
[EventType "tourn"]
[EventCountry "USA"]
[SourceTitle "playchess.com"]
[Source "ChessBase"]
[SourceQuality "1"]
[TimeControl "5400+30"]

1. Nf3 {[%emt 0:00:39]} d5 {[%emt 0:00:11]} 2. g3 {[%emt 0:00:55]} c6 {[%emt 0:00:10]} 3. Bg2 {[%emt 0:01:17]} Bg4 {[%emt 0:00:14]} 4. h3 {[%emt 0:00:27]} Bh5 {[%emt 0:00:27]} 5. O-O {[%emt 0:01:06]} Nd7 {[%emt 0:00:10]} 6. d3 {[%emt 0:02:07]} Ngf6 {[%emt 0:01:27]} 7. c4 {[%emt 0:02:46]} e6 {[%emt 0:02:33]} 8. Nc3 {[%emt 0:01:04]} Bc5 {[%emt 0:04:07]} 9. cxd5 {[%emt 0:00:49]} exd5 {[%emt 0:00:20]} 10. Qb3 {[%emt 0:00:23]} Bb6 {[%emt 0:01:04]} 11. Na4 {[%emt 0:00:23]} O-O {[%emt 0:00:22]} 12. Nxb6 {[%emt 0:00:09]} axb6 {[%emt 0:00:12]} 13. g4 {[%emt 0:00:12]} Bg6 {[%emt 0:00:38]} 14. Nd4 {[%emt 0:00:04]} Re8 {[%emt 0:14:32]} 15. f4 {[%emt 0:04:48]} c5 {[%emt 0:04:58]} 16. Nf3 {[%emt 0:00:55]} h6 {[%emt 0:14:52]} 17. Rf2 {[%emt 0:03:37]} Qc7 {[%emt 0:04:17]} 18. f5 {[%emt 0:17:19]} Bh7 {[%emt 0:00:35]} 19. g5 {[%emt 0:00:05]} hxg5 {[%emt 0:01:56]} 20. Nxg5 {[%emt 0:00:14]} c4 {[%emt 0:02:53]} 21. Qc3 {[%emt 0:01:04]} b5 {[%emt 0:05:29]} 22. b4 {[%emt 0:13:46]} Qb6 {[%emt 0:03:31]} 23. d4 {[%emt 0:00:23]} Re7 {[%emt 0:02:39]} 24. Bd2 {[%emt 0:09:51]} Rae8 {[%emt 0:00:09]} 25. Re1 {[%emt 0:01:20]} Ne4 {[%emt 0:03:49]} 26. Bxe4 {[%emt 0:01:05]} dxe4 {[%emt 0:00:02]} 27. Be3 {[%emt 0:07:04]} Nf6 {[%emt 0:01:35]} 28. Ref1 {[%emt 0:00:07]} Nd5 {[%emt 0:01:26]} 29. Qc1 {[%emt 0:00:04]} f6 {[%emt 0:06:17]} 30. Nxh7 {[%emt 0:00:42]} Kxh7 {[%emt 0:00:03]} 31. Rg2 {[%emt 0:00:09]} Rd8 {[%emt 0:01:52]} 32. Rd1 {[%emt 0:02:36]} c3 {[%emt 0:01:54]} 33. Bf2 {[%emt 0:07:23]} e3 {[%emt 0:00:31]} 34. Bg3 {[%emt 0:00:04]} Re4 {[%emt 0:00:37]} 35. Kh2 {[%emt 0:02:12]} Rxd4 {[%emt 0:02:16]} 36. Rdg1 {[%emt 0:00:05]} Rd7 {[%emt 0:00:26]} 37. Qf1 {[%emt 0:00:19]} Qc6 {[%emt 0:01:59]} 38. Qf3 {[%emt 0:00:33]} Nf4 {[%emt 0:00:16]} 39. Qxc6 {[%emt 0:11:28]} bxc6 {[%emt 0:00:05]} 40. Bxf4 {[%emt 0:00:03]} Rxf4 {[%emt 0:00:04]} 41. Rc1 {[%emt 0:00:04]} Rc4 {[%emt 0:02:51]} 42. Rg4 {[%emt 0:00:03]} Rxg4 {[%emt 0:04:09]} 43. hxg4 {[%emt 0:00:06]} Rd2 {[%emt 0:00:03]} 44. Rxc3 {[%emt 0:02:22]} Rxe2+ {[%emt 0:00:04]} 45. Kg3 {[%emt 0:00:04]} Rxa2 {[%emt 0:00:03]} 46. Rxc6 {[%emt 0:00:58]} Rb2 {[%emt 0:02:13]} 47. Re6 {[%emt 0:00:13]} e2 {[%emt 0:00:29]} 48. Re8 {[%emt 0:00:57]} g6 {[%emt 0:05:43]} 49. fxg6+ {[%emt 0:02:53]} Kxg6 {[%emt 0:00:10]} 50. Kf3 {[%emt 0:00:18]} Rxb4 {[%emt 0:01:30]} 51. Rxe2 {[%emt 0:00:15]} Kg5 {[%emt 0:00:16]} 52. Rd2 {[%emt 0:04:46]} Rf4+ {[%emt 0:03:19]} 53. Ke3 {[%emt 0:00:06]} Kxg4 {[%emt 0:00:27]} 54. Rd6 {[%emt 0:00:07]} Rf5 {[%emt 0:01:52]} 55. Rb6 {[%emt 0:00:15]} Kg5 {[%emt 0:00:17]} 56. Rb8 {[%emt 0:00:16]} Re5+ {[%emt 0:00:10]} 57. Kd4 {[%emt 0:00:04]} Kf5 {[%emt 0:00:29]} 58. Kd3 {[%emt 0:00:13]} Rd5+ {[%emt 0:00:31]} 59. Ke3 {[%emt 0:00:05]} Ke6 {[%emt 0:00:47]} 60. Ke4 {[%emt 0:00:08]} f5+ {[%emt 0:00:34]} 61. Kf4 {[%emt 0:00:04]} Kd6 {[%emt 0:00:31]} 0-1

[Event "Charlotte CC Fall GM-Open 2024"]
[Site "Charlotte"]
[Date "2024.11.25"]
[Round "6.5"]
[White "Zhou, Jianchao"]
[Black "Putnam, Liam"]
[Result "1/2-1/2"]
[ECO "D38"]
[WhiteElo "2581"]
[BlackElo "2402"]
[Annotator "TA"]
[PlyCount "64"]
[EventDate "2024.11.22"]
[EventType "tourn"]
[EventCountry "USA"]
[SourceTitle "playchess.com"]
[Source "ChessBase"]
[SourceQuality "1"]
[TimeControl "5400+30"]

{[%evp 11,64,32,25,9,5,9,20,33,40,16,29,30,16,32,29,27,20,14,31,35,29,8,29,19,32,17,46,31,56,23,29,15,37,37,34,31,41,29,30,23,37,38,27,20,36,0,0,0,0,0,0,0,0,0,0]} 1. d4 {[%emt 0:05:22]} Nf6 {[%emt 0:00:12]} 2. c4 {[%emt 0:00:27]} e6 {[%emt 0:00:19]} 3. Nf3 {[%emt 0:00:33]} d5 {[%emt 0:00:20]} 4. Nc3 {[%emt 0:01:27]} Bb4 {[%emt 0:00:11]} 5. Qa4+ {[%emt 0:00:33]} Nc6 {[%emt 0:00:06]} 6. e3 {[%emt 0:00:16]} O-O {[%emt 0:00:18]} 7. Qc2 {[%emt 0:02:50]} Re8 {[%emt 0:03:36]} 8. Bd2 {[%emt 0:00:23]} Bd6 {[%emt 0:09:37]} 9. c5 {[%emt 0:00:44]} Bf8 {[%emt 0:01:22]} 10. Bb5 {[%emt 0:00:14]} Bd7 {[%emt 0:01:43]} 11. Bxc6 {[%emt 0:00:26]} Bxc6 {[%emt 0:00:06]} 12. Ne5 {[%emt 0:00:09]} Bd7 {[%emt 0:03:23]} 13. O-O {[%emt 0:01:41]} c6 {[%emt 0:00:25]} 14. f4 {[%emt 0:00:30]} b6 {[%emt 0:01:32]} 15. b4 {[%emt 0:02:14]} Qc7 {[%emt 0:01:08]} 16. Rfc1 {[%emt 0:07:03]} bxc5 {[%emt 0:01:30]} 17. bxc5 {[%emt 0:00:39]} Reb8 {[%emt 0:00:29]} 18. Be1 {[%emt 0:09:42]} g6 {[%emt 0:03:31]} 19. Rab1 {[%emt 0:02:54]} Be8 {[%emt 0:00:27]} 20. Rxb8 {[%emt 0:01:08]} Rxb8 {[%emt 0:00:15]} 21. Rb1 {[%emt 0:01:47]} Be7 {[%emt 0:04:44]} 22. Rxb8 {[%emt 0:04:40]} Qxb8 {[%emt 0:00:06]} 23. Bh4 {[%emt 0:02:26]} Kf8 {[%emt 0:00:58]} 24. Qb3 {[%emt 0:02:08]} Qc7 {[%emt 0:02:50]} 25. g4 {[%emt 0:08:14]} h6 {[%emt 0:07:56]} 26. a3 {[%emt 0:05:54]} Qc8 {[%emt 0:09:56]} 27. Qa4 {[%emt 0:04:32]} Qc7 {[%emt 0:08:07]} 28. Bg3 {[%emt 0:07:21]} Qb7 {[%emt 0:02:08] The position is equal.} 29. Qb4 {[%emt 0:00:17]} Qc8 {[%emt 0:00:39]} 30. Qa4 {[%emt 0:00:47]} Qb7 {[%emt 0:00:15]} 31. Qb4 {[%emt 0:00:13]} Qc8 {[%emt 0:00:32]} 32. Qa4 {[%emt 0:02:10]} Qb7 {[%emt 0:00:26] Weighted Error Value: White=0.07 (flawless) /Black=0.08 (flawless) .  Inaccurate:     	White=2     	Black=1      OK:         	White=8     	Black=9      Best:        	White=1     	Black=1} 1/2-1/2